Workbook

Sheet Application
A1: HORTICULTURAL LIGHTING SOLUTION APPLICATION FOR PROJECTS COMPLETED BY 12/31/2026 | J1: Note: this workbook needs to be used in the full version of Excel. Some features won't work in Excel Online.
A6: COMPLETE ALL SECTIONS. INCOMPLETE APPLICATIONS CANNOT BE PROCESSED AND WILL DELAY PAYMENT OF INCENTIVES. APPLICATIONS MUST BE SUBMITTED WITHIN 60 DAYS OF COMPLETED PROJECT INSTALLATION, NO LATER THAN JANUARY 31, 2027. FOR ADDITIONAL COPIES OF THIS FORM, VISIT FOCUSONENERGY.COM/CATALOGS.
A11: section 1 | I11: section 4
A12: ACCOUNT AND CUSTOMER INFORMATION | I12: TRADE ALLY INFORMATION
A13: TAX IDENTIFICATION NUMBER (Check one.) | E13: FEIN or | F13: SSN
A14: IF YOU USE A SOCIAL SECURITY NUMBER (SSN) AS YOUR TAX IDENTIFICATION NUMBER, DO NOT PROVIDE IT BELOW. YOU WILL BE CONTACTED BY THE PROGRAM VIA E-MAIL TO PROVIDE A COPY OF YOUR W-9 USING A SECURE ONLINE PORTAL, IF IT IS NOT ALREADY ON FILE. YOU MUST LIST | I14: TRADE ALLY CONTACT NAME
I16: PRIMARY PHONE # | K16: E-MAIL ADDRESS
A17: AN E-MAIL ADDRESS IN SECTION 3.
E18: FEIN | I18: TRADE ALLY COMPANY NAME
A19: TAX CLASSIFICATION OF CUSTOMER
A20: (Check one. Required for all businesses, including non-profits.) | I20: ADDRESS
A21: Sole Proprietorship | C21: Individual | E21: Single Member - LLC
A22: C Corporation | C22: S Corporation | E22: Partnership | I22: CITY | L22: STATE | M22: ZIP
A23: Limited Liability Company - C Corp | E23: Limited Liability Company - S Corp
A24: Limited Liability Company - Partnership | I24: section 5
A25: Other: | I25: BUSINESS PAYMENT INFORMATION
I26: Payee is responsible for any associated tax consequences.
I27: Make incentive check payable to:
A28: OWNER NAME (REQUIRED IF SSN IS USED AS TAX IDENTIFICATION NUMBER) | I28: Customer | J28: Trade Ally | K28: Other Payee
I29: If Other Payee is selected, the relationship to the utility account holder
A30: COMPANY NAME | I30: must be identified below:
I31: Tenant | J31: Building Owner | K31: Other (specify)
A32: LEGAL ADDRESS (AS SHOWN ON COMPANY W-9) | I32: For All Payees this Seciton MUST be Filled Out
I33: Mail check to: | J33: Customer Legal Address | L33: Job Site Address
A34: CITY | E34: STATE | F34: ZIP | J34: Trade Ally Address | L34: Alternate Address
A36: WHO DID YOU WORK WITH FROM FOCUS ON ENERGY? (CONTACT NAME) | I36: COMPANY NAME
A38: section 2 | I38: LEGAL ADDRESS (AS SHOWN ON COMPANY W-9)
A39: JOB SITE INFORMATION
A40: (Refer to your utility bills for account numbers below.) | I40: CITY | L40: STATE | M40: ZIP
A42: JOB SITE BUSINESS NAME | I42: ATTENTION TO (OPTIONAL)
I43: For Trade Ally and Other Payees
A44: ELECTRIC UTILITY AT JOB SITE | E44: ELECTRIC ACCOUNT # | I44: Trade Allies must be registered with the Program to receive payment.
A45: N/A | E45: N/A | I45: All other payees must have a current W-9 on file to receive payment.
A46: GAS UTILITY AT JOB SITE | E46: GAS ACCOUNT # | I46: TAX IDENTIFICATION NUMBER (Check one.) | L46: FEIN or | M46: SSN
A47: Job Site Address is same as Legal Address | I47: If you use a Social Security Number (SSN) as your TAX Identification Number, do not provide it below. You will be contacted by the Program via email to provide a copy of your W-9 using a secure online portal, if it is not already on file. You must list an email address below.
A48: Job Site Address is different (complete below.)
A51: JOB SITE ADDRESS
I52: FEIN
A53: CITY | E53: STATE | F53: ZIP | I53: Tax Classification of Payee
I54: (Check one. Required for all businesses, including non-profits.)
A55: section 3 | I55: Sole Proprietorship | K55: Individual | L55: Single-Member LLC
A56: CUSTOMER CONTACT INFORMATION | I56: C Corporation | K56: S Corporation | L56: Partnership
I57: LLC - C Corp | K57: LLC - S Corp | L57: LLC - Partnership
A58: JOB SITE CUSTOMER CONTACT NAME | I58: Other
I59: Payee Contact Information
A60: PRIMARY PHONE # | C60: E-MAIL ADDRESS
I61: NAME | K61: EMAIL ADDRESS
A62: Preferred method of contact: | C62: Call | D62: E-mail | E62: Text
A63: If Focus on Energy has a question about this application, we should contact:
A64: Customer | B64: Trade Ally | C64: Other

Sheet Calculations
A1: Insert/Embed both Baseline and Energy Efficient LED Energy Usage Calculations if template below is not used.
B3: Notes and requirements for calculations:
B4: • All savings calculations are treated as confidential and will not be shared outside of Focus on Energy
B5: • Formulas used in savings calculations need to be viewable to Focus on Energy review team
B6: • Calculations must show or describe how the hours of use are derived for both baseline and energy efficient designs
B7: • Baseline design must be practical and a viable option to the customer that uses the same Photosynthetic Photon Flux Density (PPFD) as the energy efficient LED design
B8: • Calculations will need to output the Annual Electrical Usage (kWh), Electrical Demand (kW), and Cost for both the baseline and the energy efficient design. These are input on the "Savings and Incentives" tab.
A10: Summer Peak kW and Coincidence Factor Definition: | E10: Winter Peak kW and Coincidence Factor Definition:
A11: Summer peak kW is determined by the average kW load occuring between 2 pm and 6 pm on weekdays during June, July, August, and September. To calculate the summer peak kW, determine the percentage of the hours during the peak timeframe the lights will be in use. If we use 4 months and an average of 21 days/month and 4 hours/day, there are a total possible 336 summer peak hours. If lights are on during the entire 2pm - 6pm range, the total hours on would = 336, and 336 / 336 = 1.0 which would be the summer coincidence factor. | E11: Winter peak kW is determined by the average kW load occuring between 8 am - Noon and 5 pm - 9 pm during non-holiday weekdays in the months of December, January, and February. To calculate the winter peak kW, determine the percentage of the hours during the peak timeframe the lights will be in use. If we use 3 months and an average of 21 days/month and 8 hours/day, there are a total possible 504 winter peak hours. If lights are only on during the 8 am - Noon hours within that range, the total hours on would = 252, and 252 / 504 = 0.5 which woudl be the winter coincidence factor.
A18: Supplemented Greenhouse - AG5033 | E18: Single Tier Indoor Farm - AG5032
B19: Baseline Example | C19: Baseline | F19: Baseline Example | G19: Baseline
A20: Description | B20: Double Ended 1000W High Pressure Sodium | E20: Description | F20: Double Ended 1000W High Pressure Sodium
A21: # of Fixtures | B21: 242 | E21: # of Fixtures | F21: 242
A22: Fixture Wattage | B22: 1,079 | E22: Fixture Wattage | F22: 1,079
A23: Annual Operating Hours | B23: 3,641 | E23: Annual Operating Hours | F23: 3,641
A24: kW Usage | B24: =ROUND(B21*B22/1000,4) -> 261.12 | C24: =ROUND(C21*C22/1000,4) -> 0.00 | E24: kW Usage | F24: =ROUND(F21*F22/1000,4) -> 261.12 | G24: =ROUND(G21*G22/1000,4) -> 0.00
A25: Coincidence Factor: Summer kW | B25: 0.00 | E25: Coincidence Factor: Summer kW | F25: 1.00
A26: Summer kW Demand | B26: =B24*B25 -> 0.00 | C26: =C24*C25 -> 0.00 | E26: Summer kW Demand | F26: =F24*F25 -> 261.12 | G26: =G24*G25 -> 0.00
A27: Coincidence Factor: Winter kW | B27: 0.25 | E27: Coincidence Factor: Winter kW | F27: 0.50
A28: Winter kW Demand | B28: =B24*B27 -> 65.28 | C28: =C24*C27 -> 0.00 | E28: Winter kW Demand | F28: =F24*F27 -> 130.56 | G28: =G24*G27 -> 0.00
A29: Annual kWh Usage | B29: =ROUND(B24*B23,0) -> 950,731 | C29: =ROUND(C24*C23,0) -> 0 | E29: Annual kWh Usage | F29: =ROUND(F24*F23,0) -> 950,731 | G29: =ROUND(G24*G23,0) -> 0
A30: Customer blended $/kWh Rate | B30: $0.13 | C30: $0.13 | E30: Customer blended $/kWh Rate | F30: $0.13 | G30: $0.13
A31: Project Cost | B31: $154,250.00 | E31: Project Cost | F31: $154,250.00
B33: Proposed Energy Efficient LED Example | C33: Proposed Energy Efficient LED | F33: Proposed Energy Efficient LED Example | G33: Proposed Energy Efficient LED
A34: Description | B34: List Make and Model of the LED fixtures | E34: Description | F34: List Make and Model of the LED fixtures
A35: # of Fixtures | B35: 220 | E35: # of Fixtures | F35: 220
A36: Fixture Wattage | B36: 654 | E36: Fixture Wattage | F36: 654
A37: Proposed Annual Electrical Usage Without Controls (kWh) | B37: =((B35*B36)/1000)*B23 -> 523,867 | C37: =((C35*C36)/1000)*C23 -> 0 | E37: Proposed Annual Electrical Usage Without Controls (kWh) | F37: =((F35*F36)/1000)*F23 -> 523,867 | G37: =((G35*G36)/1000)*G23 -> 0
A38: Use of Controls? | B38: Yes | E38: Use of Controls? | F38: Yes
A39: Control Type | B39: Dimming | E39: Control Type | F39: Dimming
A40: Lighting Control Savings Factor | B40: 15% | E40: Lighting Control Savings Factor | F40: 15%
A41: Annual Operating Hours | B41: =IFERROR(IF(B38="no",B23,B23*(1-B40)),"") -> 3,095 | C41: =IFERROR(IF(C38="no",C23,C23*(1-C40)),"") -> 0 | E41: Annual Operating Hours | F41: =IFERROR(IF(F38="no",F23,F23*(1-F40)),"") -> 3,095 | G41: =IFERROR(IF(G38="no",G23,G23*(1-G40)),"") -> 0
A42: Proposed kW Usage | B42: =ROUND(B35*B36/1000,2) -> 143.88 | C42: =ROUND(C35*C36/1000,2) -> 0.00 | E42: Proposed kW Usage | F42: =ROUND(F35*F36/1000,2) -> 143.88 | G42: =ROUND(G35*G36/1000,2) -> 0.00
A43: Coincidence Factor: Summer kW | B43: 0.00 | E43: Coincidence Factor: Summer kW | F43: 1.00
A44: Proposed Summer kW Demand | B44: =B42*B43 -> 0.00 | C44: =C42*C43 -> 0.00 | E44: Proposed Summer kW Demand | F44: =F42*F43 -> 143.88 | G44: =G42*G43 -> 0.00
A45: Coincidence Factor: Winter kW | B45: 0.25 | E45: Coincidence Factor: Winter kW | F45: 0.50
A46: Proposed Winter kW Demand | B46: =B42*B45 -> 35.97 | C46: =C42*C45 -> 0.00 | E46: Proposed Winter kW Demand | F46: =F42*F45 -> 71.94 | G46: =G42*G45 -> 0.00
A47: Proposed Annual Electrical Usage Without Controls | B47: =B35*(B36/1000)*B23 -> 523,867 | C47: =C35*(C36/1000)*C23 -> 0 | E47: Proposed Annual Electrical Usage Without Controls | F47: =F35*(F36/1000)*F23 -> 523,867 | G47: =G35*(G36/1000)*G23 -> 0
A48: Proposed Annual Electrical Usage With Controls | B48: =B35*(B36/1000)*B41 -> 445,287 | C48: =C35*(C36/1000)*C41 -> 0 | E48: Proposed Annual Electrical Usage With Controls | F48: =F35*(F36/1000)*F41 -> 445,287 | G48: =G35*(G36/1000)*G41 -> 0
A49: Project Cost | B49: $324,150.00 | E49: Project Cost | F49: $324,150.00
A51: ESTIMATED SAVINGS | B51: Example | C51: Actual Savings | E51: ESTIMATED SAVINGS | F51: Example | G51: Actual Savings
A52: Summer Peak kW Saved | B52: NA for Greenhouses | C52: =C26-C44 -> 0.00 | E52: Summer Peak kW Saved | F52: =F24-F44 -> 117.24 | G52: =G26-G44 -> 0.00
A53: Winter Peak kW Saved | B53: =B28-B46 -> 29.31 | C53: =C28-C46 -> 0.00 | E53: Winter Peak kW Saved | F53: =F24-F46 -> 189.18 | G53: =G28-G46 -> 0.00
A54: Annual Electrical Usage Without Controls | B54: =B29-B47 -> 426,864 | C54: =C29-C47 -> 0 | E54: Annual Electrical Usage Without Controls | F54: =F29-F47 -> 426,864 | G54: =G29-G47 -> 0
A55: Annual Electrical Savings With Controls | B55: =B29-B48 -> 505,444 | C55: =C29-C48 -> 0 | E55: Annual Electrical Savings With Controls | F55: =F29-F48 -> 505,444 | G55: =G29-G48 -> 0
A57: These are examples only, the number of lighting hours will need to be calculated for each project individually.
A58: Estimated Supplemented Greenhouse Lighting Hours - SAMPLE CALC
A59: Month | B59: Avg.Daily Direct Solar Radiation | C59: % cloud cover | D59: Supplemental Light Est. Hours | E59: Days | F59: Total Hrs. Grow Lights On
A60: January | B60: 12.3 | C60: 46% | D60: 18.0 | E60: 31 | F60: =D60*E60 -> 558
A61: February | B61: 15 | C61: 56% | D61: 16.0 | E61: 28 | F61: 448
A62: March | B62: 16.1 | C62: 67% | D62: 12.0 | E62: 31 | F62: 372
A63: April | B63: 17 | C63: 71% | D63: 10.0 | E63: 30 | F63: 300
A64: May | B64: 18.5 | C64: 73% | D64: 7.5 | E64: 31 | F64: 233
A65: June | B65: 20.7 | C65: 74% | D65: 5.0 | E65: 30 | F65: 150
A66: July | B66: 21.7 | C66: 72% | D66: 3.0 | E66: 31 | F66: 93
A67: August | B67: 19.3 | C67: 62% | D67: 0.0 | E67: 31 | F67: 0
A68: September | B68: 17.5 | C68: 53% | D68: 0.0 | E68: 30 | F68: 0
A69: October | B69: 14.2 | C69: 52% | D69: 14.0 | E69: 31 | F69: 434
A70: November | B70: 10.8 | C70: 44% | D70: 16.5 | E70: 30 | F70: 495
A71: December | B71: 11 | C71: 43% | D71: 18.0 | E71: 31 | F71: 558
B72: 16.2 | F72: =SUM(F60:F71) -> 3,641
E73: Default value for Supplemented Greenhouse is 2,120 hours
A74: Estimated Single Tier - Indoor Farm Lighting Hours - SAMPLE CALC
A75: Month | B75: Est. Lighting Hours | C75: Days | D75: Total Hrs. Grow Lights On
A76: January | B76: 0.0 | C76: 0 | D76: =B76*C76 -> 0
A77: February | B77: 0.0 | C77: 0 | D77: 0
A78: March | B78: 16.0 | C78: 25 | D78: 400
A79: April | B79: 16.0 | C79: 30 | D79: 480
A80: May | B80: 16.0 | C80: 31 | D80: 496
A81: June | B81: 16.0 | C81: 30 | D81: 480
A82: July | B82: 16.0 | C82: 31 | D82: 496
A83: August | B83: 16.0 | C83: 31 | D83: 496
A84: September | B84: 16.0 | C84: 30 | D84: 480
A85: October | B85: 13.1 | C85: 24 | D85: 313
A86: November | B86: 0.0 | C86: 0 | D86: 0
A87: December | B87: 0.0 | C87: 0 | D87: 0
D88: =SUM(D76:D87) -> 3,641
C89: Default value for Indoor is 5,475 hours

Sheet Lighting Layouts
A1: Insert/Embed both Baseline and Energy Efficient LED Layout Designs
I2: How to Embed a PDF File in an Excel Worksheet
I3: 1. Go to Insert tab and click on the Object icon in the Text group. ...
I4: 2. In the Object dialog box, select the 'Create New' tab and the select 'Adobe Acrobat Document' from the list. ...
I5: 3. Check the option – 'Display as icon'.
I6: 4. If desired, select "Change Icon" to modify the file name displayed (ex: Baseline Design, EE Design, etc.).
I7: 5. Click OK.
I8: 6. Select the PDF file to embed and click on Open.
B10: Baseline Design Layout | E10: Energy Efficient Design Layout | I10: 1) | R10: 2 - 5)
R26: 6)

Sheet QPL_Spec Sheets
A1: Insert/Embed Energy Efficient LED DLC QPL or Spec Sheets
Q2: How to Embed a PDF File in an Excel Worksheet
B3: New fixtures must be DLC listed in the Horticultural Lighting category or meet the following requirements: | Q3: 1. Go to Insert tab and click on the Object icon in the Text group. ...
B4: • Photosynthetic Photon Efficacy (PPE) ≥ 2.3 µmol/J. | Q4: 2. In the Object dialog box, select the 'Create New' tab and the select 'Adobe Acrobat Document' from the list. ...
B5: • Minimum warranty of five years. | Q5: 3. Check the option – 'Display as icon'.
B6: • Appropriate horticultural lighting designation by OSHA Nationally Recognized Testing Laboratories or Safety Compliance and Consulting Corporation. | Q6: 4. If desired, select "Change Icon" to modify the file name displayed (ex: Model XYZ QPL, Model ABC QPL, etc.).
Q7: 5. Click OK.
Q8: 6. Select the PDF file to embed and click on Open.
Q10: 1) | Z10: 2 - 5)
Z26: 6)

Sheet Proposal_Optional
A1: Insert/Embed Proposal **Optional**
G2: How to Embed a PDF File in an Excel Worksheet
G3: 1. Go to Insert tab and click on the Object icon in the Text group. ...
G4: 2. In the Object dialog box, select the 'Create New' tab and the select 'Adobe Acrobat Document' from the list. ...
G5: 3. Check the option – 'Display as icon'.
G6: 4. If desired, select "Change Icon" to modify the file name displayed (ex: Proposal [Month] [Year], etc.).
G7: 5. Click OK.
G8: 6. Select the PDF file to embed and click on Open.
G10: 1) | P10: 2 - 5)
P26: 6)

Sheet Savings and Incentives
F1: Last Updated: | G1: =MAX('Revision History'!A4:A32) -> 2026-01-09 | K1: Measure
B2: Additional Information: | K2: AG5032 - Grow Light System - Single Tier Indoor Farm
K3: AG5033 - Grow Light System - Supplemented Greenhouse
C5: SOLUTION (Choose from dropdown)
C7: BUILDING TYPE (Choose from dropdown) | K7: Existing Building
K8: New Construction
C10: ESTIMATED COMPLETION DATE
B12: Energy Savings (paste or link values from Calculations tab)
E13: EXAMPLE | F13: Fill in the yellow cells only if not auto-populated from Calculations tab
D14: Baseline Annual Electrical Usage (kWh) | E14: =Calculations!B29 -> 950,731 | F14: =IF(Calculations!C21="",Calculations!G29,Calculations!C29) -> 0
D15: Proposed Annual Electrical Usage Without Automated Controls (kWh) | E15: =Calculations!B47 -> 523,867 | F15: =IF(Calculations!C21="",Calculations!G47,Calculations!C47) -> 0 | G15: Not a required field
D16: Proposed Annual Usage With Automated Controls (kWh) | E16: =Calculations!B48 -> 445,287 | F16: =IF(Calculations!C21="",Calculations!G48,Calculations!C48) -> 0 | G16: If controls are not installed, re-enter proposed usage without controls from cell E15
D17: Annual Energy Savings (kWh) | E17: =ROUND(E14-E16,0) -> 505,444 | F17: =ROUND(F14-F16,0) -> 0
A18: Grow Light System, Supplemented greenhouse | D18: Lifecycle Energy Savings (kWh) | E18: =IF(C4="","",IF(C4="AG5032 - Grow Light System - Single Tier Indoor Farm",E17*10,E17*20)) ->  | F18: =IF(C4="","",IF(C4="AG5032 - Grow Light System - Single Tier Indoor Farm",F17*10,F17*20)) -> 
A20: 0.3 | D20: Energy Reduction (%) | E20: =IFERROR(1-(E16/E14),"") -> 53% | F20: =IFERROR(1-(F16/F14),"") ->  | G20: =IF(F20="","",IF(F20<29.99%,"Does not meet % Energy Reduction Requirement - May qualify for Custom Incentive","Does meet % Energy Reduction Requirement")) -> 
D21: Equivalent Photosynthetic Photon Flux Density (PPFD) | E21: verified | H21: Verified
H22: Not Verified
A23: 29.99 | D23: Baseline Summer Electrical Demand (kW) | E23: =Calculations!B26 -> 0 | F23: =IF(Calculations!C21="",Calculations!G26,Calculations!C26) -> 0.00
D24: Proposed Summer Electrical Demand (kW) | E24: =Calculations!B44 -> 0 | F24: =IF(Calculations!C21="",Calculations!G44,Calculations!C44) -> 0.00
A25: Grow Light System, Supplemented greenhouse | D25: Baseline Winter Electrical Demand (kW) | E25: =Calculations!B28 -> 65.28 | F25: =IF(Calculations!C21="",Calculations!G28,Calculations!C28) -> 0.00
D26: Proposed Winter Electrical Demand (kW) | E26: =Calculations!B46 -> 35.97 | F26: =IF(Calculations!C21="",Calculations!G46,Calculations!C46) -> 0.00
D27: Summer Demand Savings (kW) | E27: =E23-E24 -> 0.00 | F27: =F23-F24 -> 0.00
D28: Winter Demand Savings (kW) | E28: =ROUND(E25-E26,2) -> 29.31 | F28: =F25-F26 -> 0.00
B31: Estimated Incentive Amount | G31: Note: Blended electrical cost
D33: Cost of Electricity ($/kWh) | E33: $0.1287 | F33: $0.1287 | G33: Manually overwrite if needed. Default value of $0.1287 is EIA Monthly Rates 11/2024 to 10/2025
D34: Project Cost for Baseline Design | E34: =Calculations!B31 -> $154,250.00 | F34: =IF(Calculations!C31="",Calculations!G31,Calculations!C31) -> 0
D35: Project Cost for Energy Efficient Design | E35: =Calculations!B49 -> $324,150.00 | F35: =IF(Calculations!C49="",Calculations!G49,Calculations!C49) -> 0
D36: Incremental Project Cost | E36: =IFERROR(E35-E34,"") -> $169,900.00 | F36: =IFERROR(F35-F34,"") -> 0 | G36: =(IF(F36<0,"Does Not Qualify - Negative Incremental Project Cost","")) -> 
D37: Incentive Rate ($/kWh Saved) | E37: $0.15 | F37: $0.15
D39: Annual Energy Cost Savings | E39: =E17*E33 -> $65,050.64 | F39: =F17*F33 -> 0
D41: Total Incentive | E41: =E37*E17 -> $75,816.60 | F41: =F37*F17 -> 0
D43: Incentive Limits
D44: Incentive Capped at 50% Efficient Project Cost | E44: =(ROUND(E35*0.5,2)) -> $162,075.00 | F44: =(ROUND(F35*0.5,2)) -> $0.00
D45: Incentive Capped at $300,000 | E45: =MIN(E41,300000) -> $75,816.60 | F45: =MIN(F41,300000) -> $0.00
D46: Incentive Based on Energy Savings | E46: =E41 -> $75,816.60 | F46: =F41 -> $0.00
D47: Final Incentive | E47: =MIN(E44:E46) -> $75,816.60 | F47: =MIN(F44:F46) -> $0.00

Sheet Revision History (hidden)
A1: Revision History
A3: Date | B3: Describe the revision that was made | C3: Name
A4: 2020-07-16 | B4: Added revision history tab | C4: TB
A5: 2021-01-04 | B5: Updated Application tab, removed Hort Lighting Sell Sheet since measures are in 2021 Ag Catalog, updated password to 'focus2021' | C5: Melissa
A6: 2021-01-22 | B6: Corrected incentive cap error in formula on Savings & Incentives tab | C6: Melissa
A7: 2021-02-05 | B7: Added 'Equivalent PPFD) check on Savings & Incentives Tab | C7: Melissa
A8: 2022-01-04 | B8: Updated Application tab to have text align with check boxes and dates and section 1. Updated logo as well. | C8: Jeremiah
A9: 2022-01-06 | B9: Added how to embed instructions on several tabs. Reformatted requirement text to bullets, renamed Invoice tab to Proposal | C9: Melissa
A10: 2022-12-22 | B10: Updated Application tab to reflect changes in the 2023 catalog; updated logo on Savings and Incentives tab. | C10: Jeremiah
A11: 2023-04-27 | B11: Added MMIDs to the name of the two measures so it is easier to enter in SPECTRUM | C11: Melissa
A12: 2023-12-15 | B12: Updated workbook to reflect changes in the 2024 catalog; updated default elec. rate and password | C12: Melissa
A13: 2024-01-25 | B13: Updated incentive cap from 50% of incremental cost to 50% of efficient project cost | C13: Melissa
A14: 2024-02-23 | B14: Formatted Peak Demand (kW) Savings field on Savings and Incentives tab to display 'No Demand Savings' when supplemented greenhouse measure is selected | C14: Melissa
A15: 2024-12-27 | B15: Updated workbook to reflect changes in the 2025 catalog; updated default elec. rate and password, added winter peak kW | C15: Melissa
A16: 2026-01-09 | B16: Updated workbook to reflect changes in the 2026 catalog; Updated incentive rate to .15, elec. Rate, and password. | C16: Evan
